fUSD/lending_fUSD_20240318
["ID","MTS","AMOUNT","RATE_DAILY","PERIOD"]
[319502590,1710804638657,-150.0,0.0003737,2]
[319502591,1710804638666,-150.0,0.00037375,2]
[319502592,1710804638675,-150.0,0.0003738,2]
[319502593,1710804638684,-150.0,0.00037383,2]
[319502594,1710804638693,-150.0,0.00037384,2]
[319502595,1710804638703,-150.0,0.00037388,2]
[319502596,1710804638711,-150.0,0.00037392,2]
[319502597,1710804638721,-150.0,0.00037394,2]
[319502598,1710804638730,-300.0,0.00037394,2]
[319502599,1710804638739,-150.0,0.00037398,2]
[319502600,1710804638748,-150.0,0.000374,2]
[319502601,1710804638757,-150.0,0.00037408,2]
[319502602,1710804638767,-150.0,0.00037409,2]
[319502603,1710804638777,-150.0,0.00037417,2]
[319502604,1710804638786,-150.0,0.00037417,2]
[319502605,1710804638795,-150.0,0.00037423,2]
[319502606,1710804638804,-150.0,0.00037424,2]
[319502607,1710804638813,-150.0,0.00037429,2]
[319502608,1710804638822,-150.0,0.0003743,2]
[319502609,1710804638831,-150.0,0.00037431,2]
[319502610,1710804638840,-150.0,0.00037441,2]
[319502611,1710804638849,-150.0,0.00037444,2]
[319502612,1710804638861,-150.0,0.00037446,2]
[319502613,1710804638870,-150.0,0.0003745,2]
[319502614,1710804638880,-150.0,0.00037451,2]
[319502615,1710804638889,-150.0,0.00037451,2]
[319502616,1710804638898,-150.0,0.00037456,2]
[319502617,1710804638907,-150.0,0.00037464,2]
[319502618,1710804638916,-150.0,0.00037466,2]
[319502619,1710804638926,-150.0,0.0003747,2]
[319502620,1710804638935,-150.0,0.00037476,2]
[319502621,1710804638944,-150.0,0.00037478,2]
[319502622,1710804638954,-150.0,0.0003748,2]
[319502623,1710804638964,-150.0,0.00037481,2]
[319502624,1710804638974,-150.0,0.00037482,2]
[319502625,1710804638983,-150.0,0.00037482,2]
[319502626,1710804638997,-150.0,0.00037487,2]
[319502627,1710804639006,-150.0,0.0003749,2]
[319502628,1710804639015,-150.0,0.00037491,2]
[319502629,1710804639024,-150.0,0.00037492,2]
[319502630,1710804639034,-150.0,0.00037493,2]
[319502631,1710804639043,-150.0,0.00037494,2]
[319502632,1710804639053,-150.0,0.00037494,2]
[319502633,1710804639062,-150.0,0.000375,2]
[319502634,1710804639071,-150.0,0.00037506,2]
[319502635,1710804639082,-150.0,0.00037508,2]
[319502636,1710804639091,-150.0,0.00037511,2]
[319502637,1710804639100,-150.0,0.00037513,2]
[319502638,1710804639111,-150.0,0.00037514,2]
[319502639,1710804639120,-150.0,0.00037514,2]
[319502640,1710804639130,-150.0,0.00037515,2]
[319502641,1710804639139,-150.0,0.00037516,2]
[319502642,1710804639149,-150.0,0.0003752,2]
[319502643,1710804639160,-150.0,0.00037521,2]
[319502644,1710804639169,-150.0,0.00037527,2]
[319502645,1710804639178,-150.0,0.00037533,2]
[319502646,1710804639187,-4.1824238,0.00037534,2]
[319502647,1710804639202,-145.8175762,0.00037534,2]
[319502648,1710804639210,-150.0,0.00037534,2]
[319502649,1710804639221,-150.0,0.00037536,2]
[319502650,1710804639230,-150.0,0.00037541,2]
[319502651,1710804639239,-150.0,0.00037542,2]
[319502652,1710804639248,-4.1824238,0.00037542,2]
[319502653,1710804639259,-145.8175762,0.00037542,2]
[319502654,1710804639269,-150.0,0.00037544,2]
[319502655,1710804639278,-150.0,0.00037544,2]
[319502657,1710804639287,-150.0,0.00037549,2]
[319502659,1710804639296,-150.0,0.00037552,2]
[319502660,1710804639305,-150.0,0.00037555,2]
[319502662,1710804639315,-150.0,0.00037557,2]
[319502664,1710804639324,-150.0,0.00037557,2]
[319502666,1710804639333,-150.0,0.00037559,2]
[319502668,1710804639342,-150.0,0.00037565,2]
[319502671,1710804639351,-150.0,0.00037566,2]
[319502674,1710804639362,-150.0,0.00037567,2]
[319502675,1710804639371,-150.0,0.00037567,2]
[319502677,1710804639380,-150.0,0.00037571,2]
[319502679,1710804639389,-150.0,0.00037576,2]
[319502681,1710804639398,-150.0,0.00037584,2]
[319502683,1710804639407,-150.0,0.00037584,2]
[319502684,1710804639416,-150.0,0.00037586,2]
[319502686,1710804639425,-150.0,0.00037588,2]
[319502688,1710804639434,-150.0,0.00037593,2]
[319502690,1710804639443,-150.0,0.00037597,2]
[319502692,1710804639454,-85121.14941885,0.000376,4]
[319502694,1710804639466,-216.0,0.00037656,2]
[319502696,1710804639475,-1008.22,0.00037705,2]
[319502698,1710804639484,-151.031907,0.00037798,14]
[319502699,1710804639494,-163.19677806,0.000378,2]
[319502700,1710804639502,-188.0,0.00037808,7]
[319502701,1710804639512,-189.38007095,0.000379,11]
[319502702,1710804639521,-216.0,0.00037973,2]
[319502703,1710804639530,-200000.0,0.00038,28]
[319502705,1710804639539,-200000.0,0.00038,38]
[319502707,1710804639548,-88330.62841982,0.00038,120]
[319502709,1710804639560,-27993.69755274,0.00038,120]
[319502728,1710804639741,-150.58,0.0003,2]
[319502730,1710804639751,-45176.4387793,0.00038,120]
[319502732,1710804639760,-500.0,0.00038,4]
[319502734,1710804639770,-3279.77349101,0.00038,120]
[319502735,1710804639779,-1000.0,0.00038,120]
[319502737,1710804639789,-5281.85,0.00038,30]
[319502739,1710804639799,-20679.00860891,0.00038,15]
[319502741,1710804639808,-300.0,0.00038,5]
[319502743,1710804639817,-150.0,0.00038,2]
[319502745,1710804639827,-4174.0,0.00038,4]
[319502747,1710804639836,-5318.0,0.00038,4]
[319502749,1710804639846,-1113.0,0.00038,4]
[319502750,1710804639856,-838.0,0.00038,4]
[319502752,1710804639865,-694.0,0.00038,4]
[319502773,1710804640092,-776.0,0.00038,4]
[319502775,1710804640102,-520.82,0.00038,30]
[319502777,1710804640113,-150.0,0.00038072,2]
[319502779,1710804640122,-151.031907,0.00038198,14]
[319502780,1710804640131,-5005.68667607,0.00038225,2]
[319502782,1710804640141,-1054.0,0.00038249,20]
[319502784,1710804640150,-151.15077774,0.00038258,2]
[319502785,1710804640159,-293.76,0.00038356,10]
[319502787,1710804640167,-1000.0,0.00038428,31]
[319502789,1710804640177,-151.031907,0.00038498,14]
[319502790,1710804640186,-300.0,0.00038548,5]
[319502792,1710804640195,-220.05,0.000386,13]
[319502793,1710804640205,-153.333335,0.0003865,7]
[319502795,1710804640214,-186.161043,0.0003865,7]
[319502797,1710804640223,-166.253587,0.0003865,7]
[319502799,1710804640232,-185.165175,0.0003865,7]
[319502800,1710804640241,-178.68771224,0.0003874,2]
[319502802,1710804640251,-7718.4,0.00038758,70]
[319502804,1710804640259,-1189.99937187,0.00038765,2]
[319502806,1710804640268,-50809.38878371,0.0003878,8]
[319502807,1710804640278,-176.2350469,0.0003879,2]
[319502809,1710804640287,-17775.98010559,0.000389,20]
[319502810,1710804640296,-6932.92114212,0.000389,15]
[319502811,1710804640305,-5585.49627356,0.000389,7]
[319502812,1710804640314,-1156.04494727,0.000389,2]
[319502813,1710804640323,-1009.91259681,0.000389,2]
[319502815,1710804640333,-1344.84440316,0.000389,2]
[319502817,1710804640341,-50180.24668176,0.0003897,2]
[319502823,1710804640385,-6780.99084732,0.0003897,2]
[319502838,1710804640913,-150.58,0.0003,2]
[319502839,1710804640923,-150.58,0.0003,2]
[319502840,1710804640932,-150.58,0.00032862,2]
[319502841,1710804640942,-150.58,0.00034688,2]
[319502842,1710804640951,-150.58,0.00034688,2]
[319502843,1710804640962,-150.58,0.00034688,2]
[319502844,1710804640972,-150.58,0.00034688,2]
[319502845,1710804640982,-150.58,0.00034688,2]
[319502846,1710804640993,-150.58,0.00034688,2]
[319502847,1710804641003,-150.58,0.00034688,2]
[319502848,1710804641012,-390.0,0.00035589,5]
[319502849,1710804641023,-150.58,0.0003599,2]
[319502850,1710804641033,-1484.23652305,0.0003897,2]
[319502851,1710804641045,-662.70634916,0.0003897,2]
[319502852,1710804641059,-453.8784,0.0003897,2]
[319502853,1710804641099,-850.25933855,0.0003897,2]
[319502854,1710804641229,-150.58,0.0003599,2]
[319502855,1710804641239,-150.58,0.0003699,2]
[319502856,1710804641249,-446.0393886,0.0003897,2]
[319502857,1710804641260,-318.053284,0.0003897,2]
[319502858,1710804641272,-2183.66160006,0.0003897,2]
[319502859,1710804641284,-684.11672554,0.0003897,2]
[319502860,1710804641295,-156014.74512535,0.0003897,2]
[319502861,1710804641305,-1054.0,0.00038999,20]
[319502862,1710804641314,-200000.0,0.00039,29]
[319502863,1710804641324,-200000.0,0.00039,39]
[319502864,1710804641334,-25000.0,0.00039,12]
[319502865,1710804641344,-566.79,0.00039,3]
[319502866,1710804641353,-8109.47408486,0.00039,7]
[319502867,1710804641363,-18552.99577253,0.00039,5]
[319502868,1710804641372,-390.42,0.00039,120]
[319502869,1710804641382,-50000.0,0.00039,30]
[319502870,1710804641391,-50000.0,0.00039,30]
[319502871,1710804641401,-41006.33438417,0.00039,30]
[319502872,1710804641410,-1000.0,0.00039,120]
[319502873,1710804641420,-465.348,0.00039,7]
[319502874,1710804641429,-300.0,0.00039,39]
[319502875,1710804641439,-399.47106838,0.00039,60]
[319502876,1710804641449,-94801.13163096,0.00039,120]
[319502877,1710804641457,-151.0,0.00039,14]
[319502878,1710804641467,-151.0,0.00039,14]
[319502879,1710804641476,-151.0,0.00039,14]
[319502880,1710804641485,-151.0,0.00039,14]
[319502881,1710804641494,-151.0,0.00039,14]
[319502882,1710804641503,-463.591568,0.00039,14]
[319502883,1710804641512,-463.591568,0.00039,14]
[319502884,1710804641522,-544.312743,0.00039,14]
[319502885,1710804641531,-544.312743,0.00039,14]
[319502886,1710804641541,-151.0,0.00039,14]
[319502887,1710804641551,-151.0,0.00039,14]
[319502888,1710804641560,-151.0,0.00039,7]
[319502889,1710804641569,-160.19143,0.00039,14]
[319502890,1710804641578,-160.19143,0.00039,14]
[319502891,1710804641588,-202.932054,0.00039,14]
[319502892,1710804641597,-202.932054,0.00039,14]
[319502893,1710804641608,-151.0,0.00039,14]
[319502894,1710804641618,-151.0,0.00039,14]
[319502895,1710804641627,-151.0,0.00039,14]
[319502896,1710804641636,-151.0,0.00039,14]
[319502897,1710804641645,-151.0,0.00039,14]
[319502898,1710804641654,-151.15077774,0.00039022,3]
[319502899,1710804641664,-188.0,0.00039041,7]
[319502900,1710804641673,-150.0,0.00039072,2]
[319502901,1710804641683,-7743.61928967,0.0003908,12]
[319502902,1710804641692,-300.0,0.00039096,5]
[319502903,1710804641702,-1000.0,0.000391,14]
[319502904,1710804641712,-219.52,0.00039145,2]
[319502905,1710804641721,-166.253587,0.00039235,7]
[319502906,1710804641731,-222.0,0.00039267,14]
[319502907,1710804641741,-1008.22,0.0003934,2]
[319502908,1710804641750,-153.333335,0.00039431,7]
[319502909,1710804641759,-185.165175,0.00039431,7]
[319502910,1710804641769,-152.0,0.00039575,7]
[319502911,1710804641778,-300.0,0.00039644,5]
[319502912,1710804641787,-458.16379,0.0003971,2]
[319502913,1710804641796,-1054.0,0.00039749,20]
[319502914,1710804641806,-151.15077774,0.00039787,5]
[319502915,1710804641816,-520.8981666,0.000398,120]
[319502916,1710804641825,-166.253587,0.00039821,7]
[319502917,1710804641835,-186.161043,0.00039821,7]
[319502918,1710804641845,-33210.83441031,0.0003986,4]
[319502919,1710804641854,-216.0,0.00039871,14]
[319502920,1710804641864,-3000.0,0.000399,30]
[319502921,1710804641873,-1319.25109676,0.00039995,30]
[319502922,1710804641883,-500.0,0.00039999,31]
[319502923,1710804641892,-500.0,0.00039999,31]
[319502924,1710804641904,-438.07710047,0.00039999,31]
[319502925,1710804641913,-200000.0,0.0004,30]
[319502926,1710804641922,-200000.0,0.0004,40]
[319502927,1710804641931,-2468.70447603,0.0004,4]
[319502928,1710804641941,-1100.0,0.0004,7]
[319502929,1710804641951,-13402.6487636,0.0004,12]
[319502930,1710804641960,-1347.07689495,0.0004,5]
[319502931,1710804641970,-850.0,0.0004,20]
[319502932,1710804641980,-9218.71759276,0.0004,7]
[319502933,1710804641991,-2110.0,0.0004,15]
[319502934,1710804642001,-10923.34829254,0.0004,4]
[319502935,1710804642010,-707.999,0.0004,7]
[319502936,1710804642019,-5305.0,0.0004,14]
[319502937,1710804642029,-92386.95632934,0.0004,10]
[319502938,1710804642039,-245.14062067,0.0004,10]
[319502939,1710804642048,-11312.0,0.0004,15]
[319502940,1710804642058,-500.0,0.0004,10]
[319502941,1710804642068,-3236.97891827,0.0004,2]
[319502942,1710804642078,-500000.0,0.0004,4]
[319502943,1710804642087,-1000.02,0.0004,120]
[319502944,1710804642096,-200.0,0.0004,90]
[319502945,1710804642106,-500.0,0.0004,5]
[319502946,1710804642115,-500.0,0.0004,5]
[319502947,1710804642125,-477.12749073,0.0004,30]
[319502948,1710804642134,-667.55636094,0.0004,120]
[319502949,1710804642143,-2835.08117356,0.0004,30]
[319502950,1710804642152,-1439.37741541,0.0004,30]
[319502951,1710804642162,-1138.96101413,0.0004,30]
[319502952,1710804642172,-1114.29678293,0.0004,120]
[319502953,1710804642181,-9707.80627497,0.0004,120]
[319502954,1710804642190,-1091.23,0.0004,120]
[319502956,1710804642200,-24425.04896768,0.0004,4]
[319502957,1710804642209,-2000.0,0.0004,60]
[319502959,1710804642218,-15102.60524429,0.0004,8]
[319502960,1710804642227,-2000.000001,0.0004,20]
[319502961,1710804642236,-500.0,0.0004,30]
[319502962,1710804642246,-500.0,0.0004,7]
[319502963,1710804642255,-50000.0,0.0004,120]
[319502964,1710804642264,-10246.70661141,0.0004,120]
[319502965,1710804642273,-26301.10081253,0.0004,7]
[319502966,1710804642282,-1000.0,0.0004,7]
[319502967,1710804642291,-1000.0,0.0004,7]
[319502969,1710804642300,-493.31,0.0004,7]
[319502970,1710804642309,-1000.0,0.0004,7]
[319502971,1710804642318,-500.0,0.0004,7]
[319502972,1710804642327,-298.47,0.0004,7]
[319502973,1710804642337,-500.0,0.0004,7]
[319502974,1710804642346,-7397.0,0.0004,60]
[319502975,1710804642357,-203.31596641,0.0004,2]
[319502976,1710804642367,-260.01,0.0004,30]
[319502977,1710804642376,-1016.80330863,0.0004,120]
[319502978,1710804642386,-9200.0,0.0004,10]
[319502979,1710804642395,-5034.0,0.0004,10]
[319502980,1710804642404,-500.0,0.0004,120]
[319502981,1710804642413,-537.0,0.0004,120]
[319502982,1710804642422,-39795.0,0.0004,30]
[319502983,1710804642432,-30596.92030145,0.0004,30]
[319503004,1710804643051,-396.24,0.00024954,2]
[319503006,1710804643063,-739.76,0.00024954,2]
[319503008,1710804643073,-357.0,0.00024954,2]
[319503010,1710804643082,-150.58,0.00037214,2]
[319503012,1710804643091,-150.58,0.00037488,2]
[319503014,1710804643100,-150.58,0.00037579,2]
[319503016,1710804643111,-150.58,0.00037579,2]
[319503018,1710804643120,-150.58,0.00037579,2]
[319503020,1710804643128,-150.58,0.0003758,2]
[319503022,1710804643137,-150.58,0.0003758,2]
[319503024,1710804643146,-150.58,0.00037587,2]
[319503026,1710804643156,-150.58,0.0003759,2]
[319503028,1710804643165,-150.58,0.0003759,2]
[319503030,1710804643175,-150.58,0.0003759,2]
[319503032,1710804643184,-150.58,0.0003759,2]
[319503034,1710804643192,-71.41322039,0.0003759,2]
[319503037,1710804643203,-79.16677961,0.0003759,2]
[319503039,1710804643213,-150.58,0.0003759,2]
[319503041,1710804643222,-150.58,0.0003759,2]
[319503043,1710804643231,-150.58,0.0003759,2]
[319503045,1710804643240,-205.27555849,0.00037599,2]
[319503047,1710804643249,-150.58,0.0003799,2]
[319503049,1710804643258,-150.0,0.00039896,2]
[319503051,1710804643268,-150.0,0.00039956,2]
[319503053,1710804643277,-1439.00566857,0.0004,30]
[319503062,1710804643354,-128.82015201,0.0004,30]
[319503066,1710804643379,-150.58,0.0003799,2]
[319503068,1710804643388,-5002.81841856,0.0004,30]
[319503070,1710804643399,-605.56008014,0.0004,30]
[319503115,1710804643818,-1541.35918645,0.00037599,2]
[319503117,1710804643827,-150.58,0.0003799,2]
[319503119,1710804643836,-1551.36961355,0.0004,30]
[319503325,1710804645877,-0.11844276,0.00024953,2]
[319503328,1710804645893,-542.03588327,0.00024953,2]
[319503330,1710804645903,-263.661,0.00037311,2]
[319503332,1710804645912,-1924.98078205,0.0003756,2]
[319503334,1710804645921,-215.0,0.000376,2]
[319503336,1710804645930,-150.58,0.0003799,2]
[319503338,1710804645939,-150.58,0.0003799,2]
[319503340,1710804645950,-150.58,0.0003799,2]
[319503342,1710804645959,-150.58,0.0003799,2]
[319503344,1710804645967,-35.58233489,0.0003799,2]
[319503349,1710804646004,-114.99766511,0.0003799,2]
[319503351,1710804646013,-150.58,0.0003799,2]
[319503353,1710804646022,-150.58,0.0003799,2]
[319503355,1710804646031,-150.58,0.0003799,2]
[319503357,1710804646041,-150.58,0.0003799,2]
[319503359,1710804646050,-150.58,0.0003799,2]
[319503361,1710804646059,-150.58,0.0003799,2]
[319503363,1710804646070,-150.58,0.0003799,2]
[319503365,1710804646079,-150.58,0.0003799,2]
[319503367,1710804646088,-150.58,0.0003799,2]
[319503369,1710804646097,-150.58,0.0003799,2]
[319503371,1710804646106,-150.58,0.0003799,2]
[319503373,1710804646118,-150.58,0.0003799,2]
[319503374,1710804646127,-150.58,0.0003799,2]
[319503376,1710804646136,-3533.68245039,0.00038969,4]
[319503378,1710804646145,-1312.64463625,0.00038969,10]
[319503383,1710804646198,-0.01034318,0.0003799,2]
[319503658,1710805641163,-658.9308272,0.00014052,2]
[319503659,1710805641184,-155.0,0.00014053,2]
[319503660,1710805641208,-175.71894332,0.00014053,2]
[319503661,1710805755117,-614.29795037,0.0001405,2]
[319503662,1710805759144,-971.42316563,0.0001405,2]
[319503663,1710805759163,-249.76866871,0.00014051,2]
[319503664,1710805759181,-2752.0,0.00014052,2]
[319503665,1710805759201,-7460.7875685,0.00014053,2]
[319503666,1710805759220,-1616.62187975,0.00014055,2]
[319503667,1710805759243,-175.71894332,0.00014058,2]
[319503668,1710805759265,-666.754628,0.00014572,2]
[319503669,1710805759289,-658.74639374,0.00014798,2]
[319503670,1710805759309,-155.0,0.00014798,2]
[319503671,1710805759329,-155.0,0.00014799,2]
[319503672,1710805759348,-150.0,0.00014799,2]
[319503673,1710805759368,-564.11666661,0.000148,2]
[319503674,1710805759389,-18391.58889692,0.000148,2]
[319503675,1710805759411,-151.01123559,0.00014899,2]
[319503676,1710805759431,-150.0,0.00014986,2]
[319503677,1710805759450,-321.6642452,0.00015,2]
[319503678,1710805759470,-323.06,0.00017977,2]
[319503679,1710805759490,-151.01123555,0.00018471,2]
[319503680,1710805759509,-1857.57,0.00019122,2]
[319503681,1710805759809,-150.0,0.00019193,2]
[319503682,1710805759830,-500.0,0.00019583,2]
[319503683,1710805759850,-409.09,0.00019657,2]
[319503684,1710805759869,-250.0,0.00019722,2]
[319503685,1710805759888,-184.91,0.00019726,2]
[319503686,1710805759908,-1000.0,0.00019898,2]
[319503687,1710805759927,-232.87,0.00019904,2]
[319503688,1710805759948,-1000.0,0.00019919,2]
[319503689,1710805759967,-250.0,0.00019991,2]
[319503690,1710805759989,-323.06,0.0002024,2]
[319503691,1710805760009,-181.7,0.00020441,2]
[319503692,1710805760029,-155.0,0.00020548,2]
[319503693,1710805760054,-155.0,0.00020548,2]
[319503694,1710805760075,-600.0,0.00020698,5]
[319503695,1710805760097,-2000.0,0.00020984,2]
[319503696,1710805760119,-499.99,0.00021407,2]
[319503697,1710805760139,-184.91,0.00021462,2]
[319503698,1710805760160,-155.0,0.00021696,2]
[319503699,1710805760181,-150.99,0.00021696,2]
[319503700,1710805760201,-451.10430523,0.00021696,2]
[319503701,1710805760222,-373.8809731,0.00021696,2]
[319503702,1710805760242,-204.82775189,0.00021696,2]
[319503703,1710805760261,-1000.0,0.00021697,2]
[319503704,1710805760283,-234.91084827,0.00021697,2]
[319503705,1710805760309,-510.11159399,0.00021698,2]
[319503706,1710805771099,-2400.23374582,0.00014053,2]
[319503707,1710805772107,-4359.72756259,0.00014053,2]
[319503711,1710805831689,-700.82626009,0.00014053,2]
[319503712,1710805831698,-178.55840173,0.00014053,2]
[319503713,1710805831707,-1409.15794604,0.00021697,2]
[319503714,1710805831716,-215.47574705,0.00021697,2]
[319503715,1710805831725,-4058.38164509,0.00021698,2]
[319503716,1710805831737,-1632.43062589,0.00021698,2]
[319503717,1710805831805,-4248.27024372,0.00021698,2]
[319503718,1710805831816,-5349.71648699,0.00021698,2]
[319503719,1710805831825,-699.3679182,0.00021698,2]
[319503720,1710805831836,-2785.58975098,0.000217,2]
[319503721,1710805831848,-928.10430523,0.000217,2]
[319503722,1710805831859,-6502.99999999,0.000217,2]
[319503723,1710805831878,-628.42,0.000217,2]
[319503724,1710805831889,-1860.09469274,0.000217,2]
[319503725,1710805831902,-377.73565106,0.000217,2]
[319503726,1710805831911,-35.72904894,0.000217,2]
[319503727,1710805831922,-399.44,0.000217,2]
[319503806,1710805837899,-9564.82095106,0.000217,2]
[319503807,1710805837909,-413.39457871,0.0002176,2]
[319503808,1710805837919,-155.0,0.00021781,2]
[319503809,1710805837928,-155.0,0.00021781,2]
[319503810,1710805837938,-240.9,0.0002179,3]
[319503811,1710805837948,-151.2033106,0.0002179,2]
[319503812,1710805837957,-4536.916964,0.000218,2]
[319503813,1710805837967,-148367.39595502,0.000218,5]
[319503814,1710805837977,-520.20721684,0.00021818,2]
[319503815,1710805837987,-250.0,0.00021918,2]
[319503816,1710805837996,-165.24,0.00021918,10]
[319503817,1710805838006,-779.74941329,0.00022,2]
[319503818,1710805838015,-151.01123555,0.00022042,2]
[319503820,1710805838026,-168.18,0.00022368,2]
[319503822,1710805838035,-323.06,0.00022504,2]
[319503824,1710805838045,-174.921865,0.00022675,2]
[319503826,1710805838055,-203.33989,0.00022675,2]
[319503828,1710805838065,-154.37444,0.00022676,2]
[319503830,1710805838075,-306.0676328,0.00023,2]
[319503832,1710805838084,-155.0,0.00023013,2]
[319503834,1710805838095,-154.37444,0.00023242,2]
[319503836,1710805838105,-1919.09106593,0.0002354,2]
[319503838,1710805838114,-154.37444,0.00023809,2]
[319503840,1710805838124,-223.73529118,0.00024,2]
[319503842,1710805838134,-155.0,0.00024246,2]
[319503844,1710805838144,-165.24,0.00024658,10]
[319503846,1710805838154,-323.06,0.00024768,2]
[319503848,1710805838164,-1235.1269,0.00024899,2]
[319503850,1710805838175,-3040.27810605,0.00025,5]
[319503852,1710805838185,-1018.42220439,0.00025,10]
[319503855,1710805838195,-413.39457865,0.00025257,2]
[319503857,1710805838205,-520.20721679,0.00025383,2]
[319503859,1710805838215,-155.0,0.00025479,2]
[319503860,1710805838225,-746.82,0.00025544,2]
[319503862,1710805838235,-151.01123555,0.00025614,2]
[319503864,1710805838244,-1000.0,0.0002562,2]
[319503866,1710805838253,-155.0,0.00026712,2]
[319503868,1710805838262,-1014.418,0.00026762,2]
[319503870,1710805838271,-250.0,0.00026762,2]
[319503872,1710805838281,-241.143,0.00026762,2]
[319503874,1710805838290,-323.06,0.00027032,2]
[319503876,1710805838300,-165.24,0.00027397,10]
[319503878,1710805838310,-710.20818987,0.00027598,2]
[319503880,1710805838320,-1367.20952763,0.00027598,2]
[319503882,1710805838332,-547.88346806,0.00027598,2]
[319503884,1710805838343,-3216.0,0.000276,3]
[319503886,1710805838352,-1235.12692231,0.00027944,2]
[319503888,1710805838362,-155.0,0.00027945,2]
[319503890,1710805838372,-1000.0,0.00027945,2]
[319503892,1710805838382,-849.0,0.00028316,2]
[319503894,1710805838391,-3581.0,0.00028316,2]
[319503896,1710805838402,-823.0,0.00028316,2]
[319503898,1710805838411,-290.0,0.00028316,2]
[319503900,1710805838422,-849.0,0.00028608,2]
[319503902,1710805838431,-816.79196072,0.00028608,2]
[319503909,1710805838481,-1980.54293109,0.00028608,2]
[319503913,1710805838516,-783.66510819,0.00028608,2]
[319503915,1710805838525,-823.0,0.00028608,2]
[319503917,1710805838534,-290.0,0.00028608,2]
[319503919,1710805838547,-181.7,0.00028617,2]
[319503922,1710805838557,-413.39457865,0.00028754,2]
[319503924,1710805838566,-151.2033106,0.00028788,2]
[319503926,1710805838576,-484.60757585,0.00028797,2]
[319503928,1710805838586,-902.64482041,0.00028797,2]
[319503930,1710805838599,-652.21156,0.00028797,2]
[319503932,1710805838631,-3009.551005,0.00028797,2]
[319503933,1710805838643,-233.68233927,0.00028797,2]
[319503934,1710805838652,-256.18529431,0.00028797,2]
[319503935,1710805838662,-5446.33236642,0.00028797,2]
[319503936,1710805838674,-703.42764,0.00028797,2]
[319504013,1710805841547,-975.19517749,0.00028797,2]
[319504014,1710805841608,-1270.0180164,0.00028797,2]
[319504015,1710805841620,-81.94834667,0.00028797,2]
[319504016,1710805841630,-189.55599932,0.00028797,2]
[319504017,1710805841639,-212.39660578,0.00028797,2]
[319504018,1710805841672,-27.76338673,0.00028797,2]
[319504019,1710805841681,-391.41641974,0.00028797,2]
[319504020,1710805841693,-345.31775641,0.00028797,2]
[319504021,1710805841702,-65.72595046,0.00028798,2]
[319504022,1710805841713,-2133.08599544,0.00028798,2]
[319504023,1710805841722,-512.84369603,0.00028798,2]
[319504024,1710805841732,-1960.98673547,0.00028798,2]
[319504025,1710805841741,-2479.04045409,0.000288,2]
[319504026,1710805841752,-19603.6,0.000288,2]
[319504027,1710805841817,-1949.28538,0.000288,2]
[319504028,1710805841829,-634.968,0.000288,2]
[319504029,1710805841840,-6976.0,0.000288,2]
[319504030,1710805841855,-396.0,0.000288,2]
[319504031,1710805841867,-7017.00999995,0.000288,2]
[319504032,1710805841891,-10741.21653731,0.000288,2]
[319504033,1710805841920,-876.20140957,0.000288,2]
[319504034,1710805841932,-7326.67821908,0.000288,2]